bitfinex-derivatives/quotes_SOLF0:USTF0_20260105
["timestamp","ask_amount","ask_price","bid_price","bid_amount"]
[1767592047938,86.92,135.94,135.88,0.38139789]
[1767592048852,1.746448,135.97,135.89,6.95818789]
[1767592049041,86.92,135.96,135.89,6.95818789]
[1767592049236,1.746448,135.99,135.91,0.33188789]
[1767592049437,86.92,135.98,135.91,0.33188789]
[1767592049640,86.92,135.98,135.91,0.37859326]
[1767592050050,86.92,135.98,135.91,2.12504126]
[1767592050546,86.92,135.98,135.91,8.75034126]
[1767592051341,86.92,135.98,135.91,7.00389326]
[1767592051846,1.746448,135.97,135.91,0.04670537]
[1767592054649,86.92,135.98,135.91,0.04670537]
[1767592055653,89.6490895,135.98,135.91,0.04670537]
[1767592057250,96.2715895,135.98,135.91,0.04670537]
[1767592059347,93.5425,135.98,135.91,0.04670537]
[1767592062653,86.92,135.98,135.91,0.04670537]
[1767592063254,86.92,135.98,135.93,0.32531463]
[1767592063956,86.92,135.98,135.94,0.05647044]
[1767592067055,9.3491895,136.03,135.94,0.05647044]
[1767592067260,86.92,136.0,135.94,0.05647044]
[1767592067559,86.92,136.0,135.93,6.94961463]
[1767592067856,86.92,136.0,135.96,0.04775584]
[1767592068359,86.92,136.0,135.91,6.6255]
[1767592068554,86.92,136.0,135.88,13.91257229]
[1767592068555,2.7290895,135.98,135.88,13.91257229]
[1767592068755,2.7290895,135.98,135.88,0.32531463]
[1767592069653,2.7290895,135.98,135.89,6.95161463]
[1767592069953,0.04702439,135.94,135.89,6.95161463]
[1767592076457,2.7290895,135.99,135.91,0.32531463]
[1767592076764,86.92,135.97,135.91,0.32531463]
[1767592080963,2.7290895,135.99,135.91,0.32531463]
[1767592081159,2.7290895,136.01,135.92,0.33795312]
[1767592081364,86.92,136.0,135.92,0.33795312]
[1767592081662,86.92,136.0,135.93,0.33795312]
[1767592082165,86.92,136.0,135.95,0.04847329]
[1767592084064,2.7290895,135.97,135.89,13.92521078]
[1767592084272,2.7290895,135.97,135.89,0.33795312]
[1767592085458,0.04728907,135.94,135.89,0.33795312]
[1767592085654,0.04728907,135.94,135.89,6.96425312]
[1767592092872,0.04728907,135.94,135.89,0.33795312]
[1767592096269,0.04728907,135.94,135.88,6.6269]
[1767592097171,0.04728907,135.94,135.88,6.96485312]
[1767592101484,0.04728907,135.94,135.89,0.33795312]
[1767592110886,0.04728907,135.94,135.9,0.30787018]
[1767592112092,86.92,135.95,135.92,0.30787018]
[1767592112295,9.3506895,136.0,135.92,0.30787018]
[1767592112487,86.92,135.98,135.92,0.30787018]
[1767592113386,86.92,135.98,135.94,0.04920092]
[1767592123602,6.6206,136.02,135.94,0.35868866]
[1767592123802,86.92,135.99,135.94,0.35868866]
[1767592128103,86.92,135.99,135.94,0.04920092]
[1767592128304,1.74657015,135.98,135.94,0.04920092]
[1767592130304,86.92,135.99,135.94,0.04920092]
[1767592140110,88.66657015,135.99,135.94,0.04920092]
[1767592144815,1.74657015,135.95,135.89,13.58725766]
[1767592145027,86.9,135.94,135.88,0.31687497]
[1767592145708,1.74657015,135.93,135.86,0.31687497]
[1767592146111,1.74657015,135.93,135.86,6.94477497]
[1767592146313,0.05161004,135.91,135.86,0.31687497]
[1767592146618,86.92,135.9,135.86,0.31687497]
[1767592147123,0.05161004,135.91,135.86,0.31687497]
[1767592150218,1.74657015,135.94,135.87,0.31687497]
[1767592150421,86.92,135.92,135.87,0.3706117]
[1767592162040,86.92,135.92,135.87,6.9980117]
[1767592162438,1.74657015,135.98,135.9,0.31687497]
[1767592162633,86.94,135.98,135.9,0.31687497]
[1767592162834,86.94,135.98,135.91,0.31687497]
[1767592163038,86.94,135.98,135.91,2.06344512]
[1767592163337,86.94,135.98,135.93,0.04658716]
[1767592166854,1.74657015,135.97,135.93,0.04658716]
[1767592170145,86.94,135.98,135.93,0.04658716]
[1767592170340,88.68657015,135.98,135.93,0.04658716]
[1767592176148,1.74657015,135.98,135.93,0.04658716]
[1767592176347,86.92,135.97,135.93,0.04658716]
[1767592184949,86.92,135.97,135.9,0.3192206]
[1767592186353,0.0500523,135.95,135.9,0.3192206]
[1767592200083,0.0500523,135.95,135.89,6.9455206]
[1767592201281,2.72873919,135.94,135.87,6.94993937]
[1767592201585,86.92,135.93,135.87,0.32263937]
[1767592202083,0.04839645,135.91,135.87,0.32263937]
[1767592203280,0.04839645,135.91,135.86,6.6279]
[1767592203479,2.77713564,135.91,135.85,0.32263937]
[1767592204788,0.04839645,135.91,135.85,0.32263937]
[1767592207072,86.96839645,135.91,135.85,0.32263937]
[1767592207482,0.04839645,135.91,135.85,0.32263937]
[1767592207674,86.98839645,135.91,135.85,0.32263937]
[1767592208378,0.04839645,135.91,135.85,0.32263937]
[1767592208688,86.98839645,135.91,135.85,0.32263937]
[1767592211193,0.04839645,135.91,135.85,0.32263937]
[1767592211488,86.94,135.9,135.85,0.32263937]
[1767592214186,89.66873919,135.9,135.83,0.32263937]
[1767592214575,89.66873919,135.9,135.83,6.95193937]
[1767592214989,0.05072827,135.88,135.83,6.95193937]
[1767592217393,0.05072827,135.88,135.84,0.32263937]
[1767592218690,0.05072827,135.88,135.83,6.6293]
[1767592218884,0.05072827,135.88,135.83,0.32263937]
[1767592222290,0.05072827,135.88,135.83,6.95203937]
[1767592224395,87.01072827,135.88,135.83,6.95203937]
[1767592228197,87.01072827,135.88,135.81,6.95293937]
[1767592228397,87.01072827,135.88,135.82,0.32263937]
[1767592229605,87.01072827,135.88,135.83,0.32263937]
[1767592240704,0.05072827,135.88,135.83,0.32263937]
[1767592241010,86.96,135.87,135.83,0.32263937]
[1767592242916,86.96,135.87,135.82,6.6299]
[1767592245007,86.96,135.87,135.81,2.07881585]
[1767592245212,86.96,135.87,135.81,0.32998597]
[1767592245509,86.96,135.87,135.8,13.58725766]
[1767592245817,1.74882988,135.86,135.79,13.91724363]
[1767592246210,1.74882988,135.86,135.79,0.32998597]
[1767592246407,0.05262991,135.84,135.79,0.32998597]
[1767592246602,0.05262991,135.84,135.79,6.96128597]
[1767592252419,0.05262991,135.84,135.8,0.32998597]
[1767592257727,1.74882988,135.83,135.78,0.32998597]
[1767592259236,0.05262991,135.84,135.78,0.32998597]
[1767592259440,1.80145979,135.84,135.78,0.32998597]
[1767592260739,0.05262991,135.84,135.78,0.32998597]
[1767592263234,1.74882988,135.83,135.77,6.6321]
[1767592263435,86.98,135.82,135.76,153.13597583]
[1767592263635,86.98,135.82,135.76,0.33088641]
[1767592264231,0.04890056,135.8,135.76,0.33088641]
[1767592268952,0.04890056,135.8,135.75,6.6332]
[1767592269447,0.04890056,135.8,135.75,6.96408641]
[1767592270042,0.04890056,135.8,135.76,0.33088641]
[1767592271849,1.79773044,135.8,135.74,0.33088641]
[1767592272150,0.04890056,135.8,135.75,0.33088641]
[1767592272345,87.04890056,135.8,135.76,0.33088641]
[1767592275448,0.04890056,135.8,135.76,0.33088641]
[1767592276956,0.04890056,135.8,135.74,0.33088641]
[1767592278646,0.04890056,135.8,135.74,6.96468641]
[1767592280755,87.04890056,135.8,135.74,6.96468641]
[1767592281457,0.04890056,135.8,135.74,0.33088641]
[1767592281659,87.04890056,135.8,135.74,0.33088641]
[1767592282062,0.04890056,135.8,135.74,0.33088641]
[1767592282262,87.04890056,135.8,135.74,0.33088641]
[1767592282559,0.04890056,135.8,135.74,0.33088641]
[1767592282761,87.04890056,135.8,135.74,0.33088641]
[1767592283449,0.04890056,135.8,135.74,0.33088641]
[1767592283646,87.04890056,135.8,135.74,0.33088641]
[1767592289262,1.74882988,135.75,135.65,13.24677641]
[1767592289556,103.2073,135.73,135.59,0.33088641]
[1767592289761,1.74882988,135.68,135.61,0.33088641]
[1767592290157,212.3234,135.72,135.61,0.33088641]
[1767592290652,1.74882988,135.68,135.61,0.33088641]
[1767592290851,212.3234,135.72,135.61,0.33088641]
[1767592290852,1.74882988,135.69,135.61,0.33088641]
[1767592291053,0.04649127,135.68,135.62,0.30986185]
[1767592291461,1.79532115,135.68,135.62,0.30986185]
[1767592291660,131.9385,135.72,135.62,0.30986185]
[1767592291873,109.11,135.71,135.62,0.30986185]
[1767592292054,1.74882988,135.69,135.62,0.30986185]
[1767592292259,0.05027276,135.68,135.62,0.30986185]
[1767592292559,1.74882988,135.67,135.62,0.30986185]
[1767592292764,1.74882988,135.67,135.59,0.30986185]
[1767592292967,87.02,135.66,135.59,0.30986185]
[1767592293168,1.74882988,135.65,135.57,2.05869173]
[1767592293359,1.74882988,135.65,135.57,0.30986185]
[1767592293565,0.05336663,135.64,135.57,0.30986185]
[1767592293863,0.05336663,135.64,135.58,0.30986185]
[1767592294859,0.00521682,135.64,135.58,0.30986185]
[1767592295167,0.00521682,135.64,135.6,0.35882823]
[1767592295359,0.00521682,135.64,135.61,0.30986185]
[1767592296374,0.00521682,135.64,135.62,0.33546771]
[1767592302470,0.00521682,135.64,135.63,0.33546771]
[1767592302671,2.74092421,135.73,135.63,0.33546771]
[1767592302857,2.74092421,135.73,135.63,6.97426771]
[1767592303056,2.74092421,135.71,135.63,6.6388]
[1767592303269,2.74092421,135.69,135.61,87.41546771]
[1767592303475,2.74092421,135.69,135.61,6.97556771]
[1767592303766,2.74092421,135.69,135.62,0.33546771]
[1767592303972,2.74092421,135.69,135.62,6.97506771]
[1767592304270,2.74092421,135.71,135.64,0.05455013]
[1767592305061,2.74092421,135.72,135.64,0.05455013]
[1767592305866,89.82092421,135.72,135.64,0.05455013]
[1767592306278,2.74092421,135.7,135.64,0.05455013]
[1767592306570,2.74092421,135.68,135.6,0.33546771]
[1767592308163,0.04846737,135.65,135.6,0.33546771]
[1767592309065,0.04846737,135.65,135.61,0.33546771]
[1767592309574,9.37602421,135.72,135.62,0.33546771]
[1767592309775,87.08,135.71,135.62,0.38398908]
[1767592310168,87.08,135.71,135.62,0.33546771]
[1767592310568,87.08,135.71,135.63,6.97456771]
[1767592310873,87.08,135.71,135.65,0.05225828]
[1767592311074,2.74092421,135.7,135.65,0.05225828]
[1767592314682,89.82092421,135.71,135.65,0.05225828]
[1767592315175,87.08,135.71,135.65,0.05225828]
[1767592315378,89.82092421,135.71,135.65,0.05225828]
[1767592315778,2.74092421,135.72,135.65,0.05225828]
[1767592315981,89.84092421,135.73,135.65,0.38772599]
[1767592316475,89.84092421,135.73,135.65,0.33546771]
[1767592317880,89.84092421,135.73,135.68,0.05051713]
[1767592318084,96.47552421,135.73,135.65,0.33546771]
[1767592318478,0.05066794,135.72,135.65,0.33546771]
[1767592320573,0.00015081,135.72,135.67,0.31900464]
[1767592320977,0.00015081,135.72,135.67,0.36566225]
[1767592321280,0.00015081,135.72,135.67,7.00276225]
[1767592322686,0.00015081,135.72,135.67,0.04665761]
[1767592324783,87.08015081,135.72,135.67,0.04665761]
[1767592324988,87.08015081,135.72,135.65,0.31900464]
[1767592326285,0.00015081,135.72,135.66,0.31900464]
[1767592326489,0.00015081,135.72,135.68,0.31900464]
[1767592326883,87.08,135.78,135.68,0.31900464]
[1767592327075,0.04815735,135.71,135.68,0.31900464]
[1767592327387,0.00149974,135.71,135.68,0.31900464]
[1767592327584,93.7121,135.78,135.68,0.31900464]
[1767592327979,6.6326,135.77,135.68,0.31900464]
[1767592328588,6.6326,135.77,135.71,0.04658454]
[1767592330576,128.00522421,135.77,135.66,0.31900464]
[1767592330783,2.74092421,135.75,135.66,0.31900464]
[1767592331683,6.6341,135.74,135.66,0.31900464]
[1767592331886,87.08,135.73,135.66,0.31900464]
[1767592332076,0.04994849,135.72,135.66,0.31900464]
[1767592333294,0.04994849,135.72,135.64,0.31900464]
[1767592333694,96.45552421,135.73,135.64,0.31900464]
[1767592334892,0.05394565,135.7,135.64,0.31900464]
[1767592337597,0.05394565,135.7,135.65,0.31900464]
[1767592338804,0.05394565,135.7,135.66,0.31900464]
[1767592343207,0.05394565,135.7,135.64,0.31900464]
[1767592344303,0.05394565,135.7,135.62,0.31900464]
[1767592344906,6.6361,135.7,135.62,0.31900464]
[1767592345102,128.05972421,135.7,135.6,0.31900464]
[1767592345510,0.04922502,135.67,135.6,0.31900464]
[1767592345714,87.12922502,135.67,135.6,0.31900464]
[1767592346213,93.76692502,135.67,135.6,0.31900464]
[1767592347823,93.76692502,135.67,135.58,0.31900464]
[1767592348212,93.7177,135.67,135.58,0.31900464]
[1767592348616,0.05132677,135.64,135.58,0.31900464]
[1767592349108,2.79225098,135.64,135.55,6.96190464]
[1767592349311,6.6397,135.63,135.55,0.31900464]
[1767592349821,87.1,135.62,135.55,0.31900464]
[1767592350013,0.04860764,135.6,135.55,0.31900464]
[1767592355919,0.0020231,135.6,135.56,0.31822133]
[1767592356116,0.0020231,135.6,135.56,1.8491216]
[1767592356309,0.0020231,135.6,135.57,0.31380278]
[1767592358221,87.12,135.66,135.57,0.31380278]
[1767592358523,87.12,135.66,135.59,0.31380278]
[1767592359723,87.12,135.66,135.61,0.051309]
[1767592362424,125.3197,135.7,135.62,0.31380278]
[1767592362425,6.6359,135.7,135.62,0.31380278]
[1767592362632,1.75484901,135.71,135.64,0.31380278]
[1767592362827,87.12,135.71,135.64,0.31380278]
[1767592363327,87.12,135.71,135.66,0.05554193]
[1767592365434,1.75484901,135.7,135.62,0.31380278]
[1767592365725,1.80678285,135.7,135.62,0.31380278]
[1767592367825,1.75484901,135.69,135.62,0.31380278]
[1767592368632,0.04835347,135.67,135.62,0.31380278]
[1767592371028,0.04835347,135.67,135.62,2.06865179]
[1767592373837,87.12,135.71,135.65,0.31380278]
[1767592374335,87.12,135.71,135.65,2.06865179]
[1767592374837,87.12,135.71,135.65,0.31380278]
[1767592375037,87.12,135.71,135.67,0.04789531]
[1767592382726,88.87484901,135.71,135.67,0.04789531]
[1767592383436,88.87484901,135.71,135.64,1.75484901]
[1767592383943,0.05407864,135.7,135.64,1.75484901]
[1767592384341,0.05407864,135.7,135.59,0.34354335]
[1767592384532,1.75484901,135.67,135.6,6.98394335]
[1767592384841,88.85484901,135.67,135.61,0.34354335]
[1767592385340,0.04740819,135.65,135.61,0.34354335]
[1767592387842,0.04740819,135.65,135.59,0.34354335]
[1767592388047,1.75484901,135.64,135.57,0.34354335]
[1767592388735,6.6385,135.65,135.57,0.34354335]
[1767592388944,0.05138881,135.62,135.57,0.34354335]
[1767592401850,1.75484901,135.61,135.55,0.34354335]
[1767592402052,1.75484901,135.6,135.52,0.34354335]
[1767592402354,1.75484901,135.6,135.53,0.34354335]
[1767592402953,0.05157818,135.58,135.53,0.34354335]
[1767592403555,0.05157818,135.58,135.53,6.98764335]
[1767592405047,1.80642719,135.58,135.53,0.34354335]
[1767592405544,1.75484901,135.56,135.5,0.34354335]
[1767592406361,1.75484901,135.58,135.51,0.34354335]
[1767592407458,1.75484901,135.56,135.51,0.34354335]
[1767592408257,87.12,135.59,135.51,1.75484901]
[1767592408564,103.2587,135.66,135.54,0.34354335]
[1767592408764,1.75484901,135.62,135.55,0.34354335]
[1767592408959,88.89484901,135.64,135.55,0.34354335]
[1767592409353,88.89484901,135.64,135.57,0.05061972]
[1767592410464,88.89484901,135.64,135.57,0.39416307]
[1767592410962,87.14,135.64,135.57,2.14901208]
[1767592412864,87.14,135.64,135.57,0.39416307]
[1767592415260,1.75484901,135.63,135.57,0.05061972]
[1767592415562,1.75484901,135.61,135.57,0.05061972]
[1767592416064,1.81114802,135.61,135.53,0.3302134]
[1767592417760,0.05629901,135.61,135.54,0.3230719]
[1767592419568,0.05629901,135.61,135.54,6.9665719]
[1767592420067,0.05629901,135.61,135.55,0.3230719]
[1767592424770,6.69669901,135.61,135.53,0.3230719]
[1767592424962,0.05629901,135.61,135.53,0.3230719]
[1767592425158,89.88384727,135.64,135.53,0.3230719]
[1767592425573,0.05154034,135.58,135.53,0.3230719]
[1767592425772,89.88384727,135.64,135.57,0.04743506]
[1767592426172,89.88384727,135.64,135.55,0.3230719]
[1767592426573,6.6394,135.63,135.55,0.3230719]
[1767592426974,6.6394,135.63,135.58,0.05117841]
[1767592427874,6.6402,135.62,135.55,0.3230719]
[1767592428067,6.69084104,135.62,135.55,0.3230719]
[1767592435975,6.6404,135.61,135.55,0.3230719]
[1767592436173,6.6404,135.61,135.54,0.3230719]
[1767592437079,0.04977456,135.59,135.54,0.3230719]
[1767592452988,0.04977456,135.59,135.55,0.34860522]
[1767592456386,0.04977456,135.59,135.52,0.34860522]
[1767592457700,9.43532183,135.59,135.52,0.34860522]
[1767592459492,2.74384727,135.57,135.48,0.34860522]
[1767592459694,2.74384727,135.57,135.47,106.14164727]
[1767592459695,2.74384727,135.57,135.5,0.34860522]
[1767592460290,0.05153778,135.55,135.5,0.34860522]
[1767592461889,0.05153778,135.55,135.47,0.34860522]
[1767592464394,0.05153778,135.55,135.45,0.34860522]
[1767592464697,2.74384727,135.54,135.45,0.34860522]
[1767592465199,2.74384727,135.52,135.45,0.34860522]
[1767592465384,0.05497502,135.51,135.45,0.34860522]
[1767592465785,0.05497502,135.51,135.42,0.34860522]
[1767592466087,2.74384727,135.5,135.42,0.34860522]
[1767592466292,87.16,135.53,135.43,0.34860522]
[1767592467198,89.90384727,135.53,135.47,0.05213969]
[1767592467400,6.6449,135.52,135.47,0.05213969]
[1767592468501,6.6476,135.46,135.38,0.34860522]
[1767592468700,2.74384727,135.45,135.38,0.34860522]
[1767592469398,2.74384727,135.42,135.34,0.34860522]
[1767592470999,87.18,135.43,135.34,0.34860522]
[1767592471700,87.18,135.43,135.36,0.34359175]
[1767592474208,2.74384727,135.42,135.34,0.34359175]
[1767592476507,6.6501,135.41,135.31,0.34959509]
[1767592477013,2.74384727,135.4,135.31,0.34959509]
[1767592477514,2.74384727,135.4,135.29,7.00509509]
[1767592477714,2.74384727,135.4,135.3,0.34959509]
[1767592478515,2.74384727,135.38,135.3,0.34959509]
[1767592479216,0.05432193,135.36,135.3,0.34959509]
[1767592481621,0.05432193,135.36,135.31,0.34959509]
[1767592481916,0.05432193,135.36,135.27,103.5495]
[1767592482122,1.81676205,135.36,135.28,2.11203521]
[1767592482313,1.76244012,135.36,135.29,0.34959509]
[1767592482619,0.05399899,135.33,135.29,0.34959509]
[1767592485118,0.05399899,135.33,135.3,1.76244012]
[1767592485325,87.24,135.38,135.3,2.11203521]
[1767592485618,87.24,135.38,135.3,2.15964746]
[1767592485814,87.24,135.38,135.3,8.81484746]
[1767592487312,103.4282,135.44,135.3,8.81484746]
[1767592487313,23.95244012,135.46,135.36,2.11288296]
[1767592487512,22.19,135.46,135.38,1.76244012]
[1767592488218,22.19,135.46,135.41,0.05649927]
[1767592488626,28.8379,135.46,135.41,0.05649927]
[1767592489718,89.04244012,135.47,135.41,0.05649927]
[1767592489719,87.28,135.47,135.41,0.05649927]
[1767592492729,109.47,135.47,135.41,0.05649927]
[1767592493132,111.23244012,135.47,135.41,0.05649927]
[1767592494828,109.47,135.47,135.41,0.05649927]
[1767592495025,111.23244012,135.47,135.41,0.05649927]
[1767592495935,117.87984012,135.47,135.41,0.05649927]
[1767592499742,87.28,135.47,135.41,0.05649927]
[1767592500446,87.28,135.47,135.42,1.76244012]
[1767592500640,87.28,135.47,135.44,1.76244012]
[1767592500942,87.28,135.47,135.43,0.345706]
[1767592501242,35.1628602,135.48,135.42,2.10814612]
[1767592501437,35.1628602,135.48,135.44,0.05572145]
[1767592504248,35.1628602,135.48,135.44,0.40142745]
[1767592504441,35.1628602,135.48,135.44,2.16386757]
[1767592504647,117.83724012,135.52,135.44,2.16386757]
[1767592505149,117.83724012,135.52,135.44,0.40142745]
[1767592505743,6.6454,135.51,135.44,0.40142745]
[1767592506642,1.76244012,135.5,135.44,0.05572145]
[1767592506842,1.76244012,135.48,135.42,0.345706]
[1767592507249,89.05387806,135.49,135.42,0.345706]
[1767592507848,87.29143794,135.49,135.42,0.345706]
[1767592508441,87.29143794,135.49,135.43,2.10814612]
[1767592508856,87.24,135.49,135.43,0.345706]
[1767592509041,87.24,135.49,135.43,2.10814612]
[1767592509242,0.05031521,135.47,135.43,2.10814612]
[1767592509841,6.645,135.52,135.44,0.345706]
[1767592510041,93.885,135.52,135.45,2.10814612]
[1767592510858,1.76244012,135.5,135.43,0.345706]
[1767592513845,6.6453,135.51,135.43,0.345706]
[1767592514554,1.76244012,135.48,135.39,2.10814612]
[1767592514756,1.76244012,135.46,135.37,2.10814612]
[1767592514960,1.76244012,135.46,135.38,0.345706]
[1767592515453,1.76244012,135.46,135.39,0.345706]
[1767592519565,1.76244012,135.46,135.4,0.345706]
[1767592520260,87.22,135.47,135.41,0.345706]
[1767592520460,1.76244012,135.48,135.41,0.345706]
[1767592524061,1.76244012,135.47,135.41,0.345706]
[1767592524266,6.6464,135.49,135.37,103.4717]
[1767592524267,1.76244012,135.45,135.38,6.996906]
[1767592524657,1.76244012,135.48,135.4,0.345706]
[1767592525060,109.43,135.51,135.4,0.345706]
[1767592525258,1.76244012,135.49,135.4,0.345706]
[1767592525657,1.76244012,135.49,135.41,6.6498]
[1767592525859,1.76244012,135.49,135.41,6.995506]
[1767592528066,1.76244012,135.48,135.41,6.995506]
[1767592531970,1.76244012,135.48,135.42,0.33742029]
[1767592533962,1.76244012,135.47,135.42,0.33742029]
[1767592536170,1.76244012,135.45,135.39,0.33742029]
[1767592536357,1.76244012,135.43,135.37,6.98922029]
[1767592536563,1.76244012,135.41,135.35,0.33742029]
[1767592538773,6.6494,135.43,135.36,0.33742029]
[1767592538774,1.76244012,135.43,135.36,0.33742029]
[1767592541974,1.76244012,135.45,135.37,2.09986041]
[1767592542163,1.76244012,135.45,135.38,0.33742029]
[1767592542470,87.22,135.46,135.38,0.33742029]
[1767592542471,89.97074243,135.46,135.38,0.33742029]
[1767592543774,96.61854243,135.46,135.38,0.33742029]
[1767592545071,96.61854243,135.46,135.39,0.33742029]
[1767592545259,89.97074243,135.46,135.39,0.33742029]
[1767592545466,87.22,135.46,135.39,0.33742029]
[1767592545666,9.39754243,135.48,135.39,0.33742029]
[1767592545866,6.6468,135.48,135.4,0.33742029]
[1767592546875,118.82674243,135.5,135.41,0.33742029]
[1767592547269,116.076,135.5,135.41,0.33742029]
[1767592548574,6.6463,135.49,135.41,0.33742029]
[1767592551981,87.24,135.5,135.43,0.34319871]
[1767592555769,103.2977,135.61,135.48,3.09394114]
[1767592555975,103.2977,135.61,135.5,3.09394114]
[1767592556582,6.6415,135.59,135.5,3.09394114]
[1767592558078,190.5188,135.63,135.54,6.98659871]
[1767592558079,87.24,135.63,135.54,6.98659871]
[1767592558269,28.8285,135.65,135.54,9.73734114]
[1767592559382,31.57984243,135.64,135.54,0.34319871]
[1767592560078,28.8291,135.64,135.54,0.34319871]
[1767592560772,28.8291,135.64,135.5,103.3744]
[1767592560773,2.75074243,135.62,135.5,3.112393]
[1767592560972,2.75074243,135.6,135.5,0.36165057]
[1767592561175,2.75074243,135.6,135.51,0.36165057]
[1767592561376,118.80074243,135.62,135.51,0.36165057]
[1767592561574,118.80074243,135.62,135.52,0.36165057]
[1767592561779,87.22,135.62,135.52,0.36165057]
[1767592562582,87.22,135.62,135.53,0.36165057]
[1767592562980,31.57964243,135.64,135.53,0.36165057]
[1767592565183,87.2,135.65,135.55,6.6428]
[1767592565484,2.75074243,135.64,135.54,87.54165057]
[1767592565877,31.57954243,135.64,135.54,0.36165057]
[1767592570485,31.57954243,135.64,135.55,0.36165057]
[1767592570486,6.6388,135.64,135.55,0.36165057]
[1767592570686,89.95074243,135.65,135.55,0.36165057]
[1767592571186,34.18177173,135.67,135.58,7.00315057]
[1767592571382,34.18177173,135.67,135.58,6.6415]
[1767592571588,34.18177173,135.67,135.59,0.36165057]
[1767592571988,34.18177173,135.67,135.6,0.36165057]
[1767592573093,34.18177173,135.67,135.6,7.00215057]
[1767592576394,34.18177173,135.67,135.61,0.36165057]
[1767592578094,34.18177173,135.67,135.63,0.05149414]
[1767592580001,87.16,135.71,135.63,0.41314471]
[1767592580402,28.8252,135.72,135.63,0.41314471]
[1767592580801,28.8252,135.72,135.63,0.36165057]
[1767592581903,28.8252,135.72,135.66,0.0480481]
[1767592582909,2.75074243,135.69,135.59,6.6409]
[1767592583208,2.75074243,135.67,135.59,6.6409]
[1767592584506,0.04911863,135.64,135.59,6.6409]
[1767592587814,0.04911863,135.64,135.59,7.00255057]
[1767592593113,0.04911863,135.64,135.6,0.36466336]
[1767592604532,1.75450459,135.68,135.61,0.36466336]
[1767592604732,1.75450459,135.68,135.61,0.41156185]
[1767592606134,93.7564,135.69,135.61,0.41156185]
[1767592606524,1.75450459,135.68,135.61,0.41156185]
[1767592610236,93.7564,135.69,135.61,2.16606644]
[1767592610431,6.6357,135.71,135.63,2.11916795]
[1767592611440,1.75450459,135.72,135.66,0.04981444]
[1767592612232,1.75450459,135.7,135.66,0.04981444]
[1767592613138,1.75450459,135.68,135.6,0.35436495]
[1767592614034,1.75450459,135.68,135.61,0.35436495]
[1767592614636,0.04664172,135.66,135.61,0.35436495]
[1767592615043,0.04664172,135.66,135.61,2.10886954]
[1767592615637,0.04664172,135.66,135.61,6.99446495]
[1767592615838,8.39100459,135.69,135.61,6.99446495]
[1767592618251,6.6365,135.69,135.61,6.99446495]
[1767592618447,8.39100459,135.69,135.64,0.04860367]
[1767592619646,6.6365,135.69,135.64,0.04860367]
[1767592619848,8.39100459,135.69,135.64,0.04860367]
[1767592625056,8.39200459,135.67,135.59,6.97372498]
[1767592625758,8.39200459,135.67,135.6,0.33282498]
[1767592626453,0.05628445,135.65,135.6,0.33282498]
[1767592627253,1.81078904,135.65,135.58,0.33282498]
[1767592628458,0.05628445,135.65,135.58,0.33282498]
[1767592628654,8.44938904,135.65,135.58,0.33282498]
[1767592629760,6.69488445,135.65,135.59,0.33282498]
[1767592631864,6.639,135.64,135.57,0.33282498]
[1767592632665,0.05609746,135.62,135.57,0.33282498]
[1767592633262,1.81060205,135.62,135.55,15.52120503]
[1767592633461,1.81060205,135.62,135.54,0.33282498]
[1767592634356,8.45070205,135.62,135.55,0.33282498]
[1767592635764,6.69619746,135.62,135.55,0.33282498]
[1767592635965,6.69619746,135.62,135.56,0.33282498]
[1767592638069,6.69619746,135.62,135.53,2.08732957]
[1767592638265,6.69619746,135.62,135.54,0.33282498]
[1767592638455,6.6401,135.62,135.54,0.33282498]
[1767592638867,0.04908316,135.59,135.54,0.33282498]
[1767592641169,0.04908316,135.59,135.53,8.39860459]
[1767592641467,0.04908316,135.59,135.52,0.33282498]
[1767592643067,0.04908316,135.59,135.53,0.33282498]
[1767592648471,0.04908316,135.59,135.54,1.75450459]
[1767592648774,87.14,135.64,135.55,6.97592498]
[1767592648961,1.75450459,135.63,135.55,6.97592498]
[1767592649166,1.75450459,135.63,135.56,0.33282498]
[1767592649573,8.39390459,135.63,135.56,0.33282498]
[1767592650074,8.39390459,135.63,135.58,0.04830525]
[1767592650773,6.69465974,135.62,135.54,2.11842076]
[1767592651468,6.6404,135.61,135.54,2.11842076]
[1767592651870,6.6404,135.61,135.54,0.36391617]
[1767592652071,8.39490459,135.61,135.54,0.36391617]
[1767592652268,0.0552001,135.59,135.54,0.36391617]
[1767592655880,0.0552001,135.59,135.55,0.36391617]
[1767592656578,0.0552001,135.59,135.56,0.36391617]
[1767592656871,6.6397,135.63,135.56,0.36391617]
[1767592657076,6.6397,135.63,135.56,0.41669664]
[1767592660985,6.6399,135.62,135.56,0.05278047]